bitfinex-derivatives/quotes_BTCF0:USTF0_20250209
["timestamp","ask_amount","ask_price","bid_price","bid_amount"]
[1739070872686,0.2065471,96816.0,96812.0,0.0349]
[1739070873087,0.2085471,96816.0,96812.0,0.0369]
[1739070875589,0.2085471,96816.0,96813.0,0.3608]
[1739070876691,0.2085471,96816.0,96813.0,0.3638]
[1739070882089,0.2065498,96815.0,96813.0,0.3638]
[1739070882788,0.002,96816.0,96813.0,0.3638]
[1739070882789,0.2065501,96814.0,96813.0,0.3638]
[1739070885198,0.2713501,96814.0,96813.0,0.003]
[1739070887995,0.2822808,96814.0,96813.0,0.003]
[1739070896701,0.2713501,96814.0,96813.0,0.003]
[1739070896899,0.2085501,96814.0,96813.0,0.3638]
[1739070897097,0.002,96814.0,96813.0,0.3638]
[1739070898604,0.002,96814.0,96813.0,0.37467608]
[1739070899010,0.002,96814.0,96813.0,0.3638]
[1739070904116,0.2085501,96814.0,96813.0,0.3638]
[1739070913023,0.2085501,96814.0,96813.0,0.003]
[1739070913225,0.2085501,96814.0,96813.0,0.3638]
[1739070917527,0.002,96814.0,96813.0,0.3638]
[1739070917737,0.20669339,96820.0,96813.0,0.3947]
[1739070917917,0.00015489,96820.0,96818.0,0.2065405]
[1739070918120,0.00015489,96820.0,96819.0,0.0318]
[1739070919028,0.00115489,96820.0,96819.0,0.0318]
[1739070919425,0.00215489,96820.0,96819.0,0.0318]
[1739070920026,0.00115489,96820.0,96819.0,0.0318]
[1739070920223,0.00215489,96820.0,96819.0,0.0348]
[1739070920825,0.00215489,96820.0,96819.0,0.0358]
[1739070921916,0.00215489,96820.0,96819.0,0.345797]
[1739070922437,0.00215489,96820.0,96819.0,0.35657635]
[1739070925526,0.00215489,96820.0,96819.0,0.04657935]
[1739070927425,0.00215489,96820.0,96819.0,0.76817935]
[1739070930035,0.00215489,96820.0,96819.0,0.97471875]
[1739070939235,0.00215489,96820.0,96819.0,0.97571875]
[1739070939632,0.00115489,96820.0,96819.0,0.97171875]
[1739070939832,0.00215489,96820.0,96819.0,0.97571875]
[1739070940239,0.00115489,96820.0,96819.0,0.97471875]
[1739070940440,0.00215489,96820.0,96819.0,0.98371875]
[1739070941042,0.00115489,96820.0,96819.0,0.97471875]
[1739070941244,0.00215489,96820.0,96819.0,0.95191875]
[1739070943541,0.00215489,96820.0,96819.0,1.01867875]
[1739070946545,0.00215489,96820.0,96819.0,0.29707875]
[1739070946747,0.00215489,96820.0,96819.0,1.4907496]
[1739070947138,0.00215489,96820.0,96819.0,0.7691496]
[1739070947338,0.00215489,96820.0,96819.0,1.4907496]
[1739070951546,0.00215489,96820.0,96819.0,1.01867875]
[1739070952449,0.00215489,96820.0,96819.0,0.29707875]
[1739070952642,0.00215489,96820.0,96819.0,1.01867875]
[1739070954449,0.00215489,96820.0,96819.0,0.65787875]
[1739070954755,0.00215489,96820.0,96819.0,0.38457935]
[1739070955051,0.06645489,96820.0,96819.0,0.38457935]
[1739070955450,0.06645489,96820.0,96819.0,0.3738]
[1739070958851,0.06645489,96820.0,96819.0,0.013]
[1739070959047,0.06645489,96820.0,96819.0,0.3738]
[1739070962447,0.27299219,96820.0,96819.0,0.3738]
[1739070964259,0.27299219,96820.0,96819.0,0.013]
[1739070964458,0.2065437,96817.0,96816.0,0.18580868]
[1739070965655,0.2075437,96817.0,96816.0,0.19480868]
[1739070965957,0.2065565,96811.0,96810.0,0.2477449]
[1739070966157,0.2065565,96811.0,96810.0,0.1479449]
[1739070966351,0.3608,96812.0,96800.0,0.1]
[1739070966553,0.2065714,96804.0,96800.0,0.1]
[1739070968158,0.2075714,96804.0,96800.0,0.1]
[1739070968362,0.5683714,96804.0,96800.0,0.1]
[1739070968668,0.2065778,96801.0,96800.0,0.1]
[1739070969764,0.2075778,96801.0,96800.0,0.1]
[1739070970162,0.2065927,96794.0,96793.0,0.00154963]
[1739070970960,0.3608,96794.0,96780.0,0.30995096]
[1739070971159,0.2066098,96786.0,96780.0,0.30995096]
[1739070971350,0.06676,96791.0,96780.0,0.30995096]
[1739070971550,0.2066205,96781.0,96780.0,0.30995096]
[1739070973164,0.0627,96784.0,96770.0,0.06437119]
[1739070973165,0.2066248,96779.0,96770.0,0.06437119]
[1739070973367,0.2066162,96783.0,96774.0,0.3608]
[1739070973555,0.2066333,96775.0,96774.0,0.3608]
[1739070974765,0.2076333,96775.0,96774.0,0.3668]
[1739070974965,0.2086333,96775.0,96774.0,0.3668]
[1739070983962,0.002,96775.0,96774.0,0.3668]
[1739070984270,0.2066036,96789.0,96774.0,0.3668]
[1739070984473,0.2066036,96789.0,96783.0,0.3608]
[1739070984771,0.06676,96793.0,96786.0,0.2066087]
[1739070984966,0.2065988,96792.0,96787.0,0.0306]
[1739070985772,0.2066004,96791.0,96787.0,0.0306]
[1739070985973,0.2066004,96791.0,96788.0,0.2066047]
[1739070986169,0.2065865,96797.0,96792.0,0.2065958]
[1739070986371,0.2065865,96797.0,96796.0,0.3608]
[1739070986861,0.20812991,96801.0,96796.0,0.3608]
[1739070987067,0.2065858,96798.0,96796.0,0.3608]
[1739070987367,0.001,96797.0,96796.0,0.3608]
[1739070987970,0.2065858,96798.0,96796.0,0.3608]
[1739070996081,0.00155011,96801.0,96788.0,0.2377051]
[1739070996280,0.20673708,96799.0,96798.0,0.3608]
[1739070997270,0.20773708,96799.0,96798.0,0.3608]
[1739070997469,0.00215498,96799.0,96788.0,0.0311]
[1739070997676,0.2066034,96789.0,96788.0,0.0311]
[1739070998474,0.00215498,96799.0,96786.0,0.3608]
[1739070998683,0.2066077,96787.0,96786.0,0.3608]
[1739070999882,0.2076077,96787.0,96786.0,0.3608]
[1739071000481,0.2076077,96787.0,96786.0,0.3648]
[1739071003575,0.2076077,96787.0,96786.0,0.004]
[1739071013190,0.2076077,96787.0,96786.0,0.2743098]
[1739071018687,0.2076077,96787.0,96786.0,0.0677]
[1739071021213,0.2076077,96787.0,96786.0,0.004]
[1739071022303,0.2076077,96787.0,96785.0,0.3608]
[1739071022504,0.2076077,96787.0,96786.0,0.001]
[1739071025894,0.2076077,96787.0,96786.0,0.2076098]
[1739071032307,0.2076077,96787.0,96786.0,0.001]
[1739071033703,0.21825964,96787.0,96786.0,0.001]
[1739071044104,0.001,96787.0,96786.0,0.001]
[1739071044408,0.2065901,96796.0,96791.0,0.2065986]
[1739071044613,0.00015498,96799.0,96795.0,0.3608]
[1739071044814,0.2065884,96797.0,96795.0,0.3608]
[1739071045011,0.2065884,96797.0,96795.0,0.5673889]
[1739071046610,0.2095884,96797.0,96795.0,0.5673889]
[1739071046813,0.2095884,96797.0,96796.0,0.3608]
[1739071047215,0.2105884,96797.0,96796.0,0.3608]
[1739071047617,0.2105884,96797.0,96795.0,0.2065889]
[1739071047811,0.2095884,96797.0,96796.0,0.3608]
[1739071048712,0.2065884,96797.0,96796.0,0.3608]
[1739071049111,0.2066013,96790.0,96789.0,0.2066018]
[1739071049816,0.2066035,96789.0,96788.0,0.2477686]
[1739071051011,0.00015498,96799.0,96786.0,0.36212]
[1739071051208,0.2066078,96787.0,96786.0,0.3608]
[1739071053216,0.2066078,96787.0,96786.0,0.3628]
[1739071053413,0.2076078,96787.0,96786.0,0.3628]
[1739071054102,0.001,96787.0,96786.0,0.5694099]
[1739071056905,0.2065892,96796.0,96786.0,0.3628]
[1739071057114,0.00015498,96799.0,96786.0,0.63378109]
[1739071057115,0.001,96787.0,96786.0,0.63378109]
[1739071057411,0.001,96787.0,96786.0,0.5694099]
[1739071058518,0.001,96787.0,96786.0,0.2086099]
[1739071058719,0.2065909,96795.0,96786.0,0.3628]
[1739071059021,0.2065909,96795.0,96789.0,0.2066023]
[1739071059409,0.2065935,96794.0,96789.0,0.2066023]
[1739071059920,0.2065935,96794.0,96793.0,0.3608]
[1739071062909,0.2065935,96794.0,96791.0,0.2065982]
[1739071062910,0.2075935,96794.0,96791.0,0.2065982]
[1739071063109,0.2075928,96794.0,96793.0,0.3608]
[1739071064116,0.2065928,96794.0,96793.0,0.3608]
[1739071066422,0.2075928,96794.0,96793.0,0.3608]
[1739071067022,0.2075928,96794.0,96793.0,0.3618]
[1739071067023,0.2065928,96794.0,96793.0,0.3618]
[1739071067511,0.2065928,96794.0,96793.0,0.3608]
[1739071067708,0.2075928,96794.0,96793.0,0.3608]
[1739071068519,0.2085928,96794.0,96793.0,0.3608]
[1739071069422,0.2075928,96794.0,96793.0,0.3608]
[1739071070327,0.2075928,96794.0,96793.0,0.3618]
[1739071070719,0.2075928,96794.0,96793.0,0.3608]
[1739071070918,0.2085928,96794.0,96793.0,0.3608]
[1739071071216,0.2085928,96794.0,96789.0,0.2066023]
[1739071071217,0.002,96794.0,96789.0,0.2066023]
[1739071071427,0.2085928,96794.0,96793.0,0.3608]
[1739071071715,0.2075928,96794.0,96793.0,0.3608]
[1739071072336,0.2065928,96794.0,96793.0,0.3608]
[1739071072517,0.2065928,96794.0,96793.0,0.3618]
[1739071072718,0.2075928,96794.0,96793.0,0.3618]
[1739071073030,0.2085928,96794.0,96793.0,0.3608]
[1739071073413,0.2075928,96794.0,96793.0,0.3608]
[1739071073922,0.001,96794.0,96789.0,0.2066023]
[1739071074130,0.2065928,96794.0,96793.0,0.3618]
[1739071075019,0.2075928,96794.0,96793.0,0.3618]
[1739071075624,0.2085928,96794.0,96793.0,0.3608]
[1739071075832,0.001,96794.0,96789.0,0.2066023]
[1739071076122,0.2075928,96794.0,96793.0,0.3608]
[1739071076935,0.2065928,96794.0,96793.0,0.3618]
[1739071077326,0.01079235,96797.0,96793.0,0.3608]
[1739071077527,0.2075928,96794.0,96793.0,0.3608]
[1739071077829,0.2085928,96794.0,96793.0,0.3608]
[1739071078332,0.002,96794.0,96789.0,0.2066023]
[1739071078522,0.2066005,96791.0,96789.0,0.2066023]
[1739071078721,0.2066005,96791.0,96790.0,0.3608]
[1739071078922,0.2066013,96790.0,96789.0,0.2066023]
[1739071079229,0.2066013,96790.0,96789.0,0.5674023]
[1739071079430,0.2066013,96790.0,96789.0,0.2066023]
[1739071079630,0.2066013,96790.0,96789.0,0.5674023]
[1739071079835,0.2066013,96790.0,96789.0,0.5694023]
[1739071080527,0.2066013,96790.0,96789.0,0.2086023]
[1739071080735,0.2066013,96790.0,96789.0,0.5694023]
[1739071080933,0.2066013,96790.0,96789.0,0.2086023]
[1739071081120,0.2076013,96790.0,96789.0,0.3628]
[1739071083120,0.2076013,96790.0,96789.0,0.002]
[1739071083325,0.2076013,96790.0,96789.0,0.3628]
[1739071086225,0.2076013,96790.0,96789.0,0.6105686]
[1739071087730,0.00015498,96799.0,96789.0,0.6105686]
[1739071088029,0.3608,96819.0,96789.0,0.6105686]
[1739071088030,0.2065641,96808.0,96798.0,0.3608]
[1739071088230,0.2065641,96808.0,96799.0,0.0618]
[1739071088431,0.3608,96819.0,96799.0,0.0618]
[1739071088639,0.2065515,96814.0,96811.0,0.2065565]
[1739071088934,0.37132642,96819.0,96810.0,0.3608]
[1739071089237,0.2065523,96813.0,96812.0,0.2065543]
[1739071090439,0.2135523,96813.0,96812.0,0.2075543]
[1739071091636,0.2195523,96813.0,96812.0,0.2075543]
[1739071095931,0.2195523,96813.0,96812.0,0.001]
[1739071110348,0.2195523,96813.0,96811.0,0.3608]
[1739071110550,0.2125523,96813.0,96812.0,0.001]
[1739071110948,0.2125523,96813.0,96811.0,0.3608]
[1739071111554,0.2065647,96808.0,96804.0,0.2065698]
[1739071111750,0.2065647,96808.0,96807.0,0.3608]
[1739071112648,0.2075647,96808.0,96804.0,0.2065698]
[1739071112853,0.2075647,96808.0,96807.0,0.3608]
[1739071113458,0.2065647,96808.0,96807.0,0.3608]
[1739071115066,0.2075647,96808.0,96807.0,0.3608]
[1739071118167,0.2065647,96808.0,96807.0,0.3608]
[1739071119060,0.2075647,96808.0,96807.0,0.3608]
[1739071119268,0.2075647,96808.0,96807.0,0.3628]
[1739071119860,0.2075647,96808.0,96807.0,0.3608]
[1739071120365,0.001,96808.0,96807.0,0.3608]
[1739071120556,0.001,96808.0,96807.0,0.3628]
[1739071120873,0.001,96808.0,96807.0,0.3933]
[1739071121070,0.2065389,96820.0,96807.0,0.3933]
[1739071121277,0.2065389,96820.0,96813.0,0.2065522]
[1739071121964,0.2065389,96820.0,96816.0,0.2065437]
[1739071122567,0.2075389,96820.0,96816.0,0.2065437]
[1739071123268,0.2075389,96820.0,96816.0,0.2105437]
[1739071124471,0.2075389,96820.0,96816.0,0.2085437]
[1739071125970,0.2075389,96820.0,96816.0,0.2065437]
[1739071126275,0.2075389,96820.0,96816.0,0.2095437]
[1739071126578,0.2075389,96820.0,96816.0,0.2085437]
[1739071130372,0.2065401,96819.0,96816.0,0.2085437]
[1739071130570,0.2065437,96817.0,96816.0,0.002]
[1739071132574,0.001,96819.0,96815.0,0.3608]
[1739071132783,0.2065459,96816.0,96815.0,0.3608]
[1739071135570,0.2065483,96815.0,96812.0,0.206553]
[1739071135765,0.2065483,96815.0,96814.0,0.3608]
[1739071136264,0.2065483,96815.0,96814.0,0.5673502]
[1739071137375,0.2065377,96820.0,96814.0,0.3608]
[1739071137576,0.2065377,96820.0,96817.0,0.2065429]
[1739071138175,0.2065377,96820.0,96815.0,0.0642]
[1739071138485,0.2065377,96820.0,96819.0,0.2065395]
[1739071139884,0.2075377,96820.0,96819.0,0.2065395]
[1739071140684,0.2065377,96820.0,96819.0,0.2075395]
[1739071142484,0.2075377,96820.0,96819.0,0.2075395]
[1739071142982,0.2075377,96820.0,96819.0,0.2065395]
[1739071143187,0.2085377,96820.0,96819.0,0.2065395]
[1739071144085,0.2075377,96820.0,96819.0,0.2065395]
[1739071144285,0.2075377,96820.0,96819.0,0.2075395]
[1739071144777,0.2065377,96820.0,96819.0,0.2075395]
[1739071145484,0.2075377,96820.0,96819.0,0.2075395]
[1739071146286,0.2065377,96820.0,96819.0,0.2075395]
[1739071146482,0.2075377,96820.0,96819.0,0.2065395]
[1739071146975,0.2065377,96820.0,96819.0,0.2065395]
[1739071147179,0.2065377,96820.0,96819.0,0.2075395]
[1739071147785,0.2075377,96820.0,96819.0,0.2065395]
[1739071148088,0.2085377,96820.0,96819.0,0.2065395]
[1739071148878,0.2075377,96820.0,96819.0,0.2065395]
[1739071149190,0.2065377,96820.0,96819.0,0.2065395]
[1739071149380,0.2075377,96820.0,96819.0,0.2065395]
[1739071149981,0.2075377,96820.0,96819.0,0.2075395]
[1739071150491,0.2085377,96820.0,96819.0,0.2065395]
[1739071150876,0.2075377,96820.0,96819.0,0.2065395]
[1739071151088,0.001,96820.0,96819.0,0.2065395]
[1739071151993,0.00015498,96822.0,96819.0,0.2065395]
[1739071152285,0.00015498,96822.0,96821.0,0.2065353]
[1739071153684,0.00115498,96822.0,96821.0,0.2065353]
[1739071154084,0.00215498,96822.0,96821.0,0.2065353]
[1739071154594,0.00115498,96822.0,96821.0,0.2065353]
[1739071155086,0.00015498,96822.0,96821.0,0.2065353]
[1739071155990,0.00115498,96822.0,96821.0,0.2065353]
[1739071156889,0.00115498,96822.0,96821.0,0.5673353]
[1739071157291,0.00015498,96822.0,96821.0,0.5673353]
[1739071157994,0.00115498,96822.0,96821.0,0.5673353]
[1739071158393,0.00215498,96822.0,96821.0,0.5673353]
[1739071158594,0.00215498,96822.0,96821.0,0.9281353]
[1739071159084,0.00115498,96822.0,96821.0,0.9281353]
[1739071159689,0.00115498,96822.0,96821.0,0.2065353]
[1739071159892,0.00115498,96822.0,96821.0,0.9281353]
[1739071160398,0.00215498,96822.0,96821.0,0.9281353]
[1739071161311,0.00115498,96822.0,96821.0,0.9281353]
[1739071161888,0.00015498,96822.0,96821.0,0.9281353]
[1739071162195,0.00115498,96822.0,96821.0,0.9281353]
[1739071165589,0.00015498,96822.0,96821.0,0.9281353]
[1739071166602,0.00115498,96822.0,96821.0,0.9281353]
[1739071168197,0.00015498,96822.0,96821.0,0.9281353]
[1739071168997,0.00115498,96822.0,96821.0,0.9281353]
[1739071169786,0.00015498,96822.0,96821.0,0.9281353]
[1739071171695,0.00115498,96822.0,96821.0,0.9281353]
[1739071173603,0.00115498,96822.0,96821.0,0.2065353]
[1739071173793,0.00115498,96822.0,96821.0,0.5673353]
[1739071180305,0.2065028,96837.0,96832.0,0.2065115]
[1739071180499,0.2065028,96837.0,96834.0,0.206507]
[1739071180901,0.0623,96839.0,96832.0,0.3608]
[1739071181104,0.0623,96839.0,96835.0,0.2065052]
[1739071181611,0.002,96837.0,96835.0,0.2065052]
[1739071182310,0.0335,96839.0,96835.0,0.2065052]
[1739071182910,0.005,96837.0,96835.0,0.2065052]
[1739071183413,0.2064991,96838.0,96835.0,0.2075052]
[1739071184015,0.005,96837.0,96835.0,0.2075052]
[1739071184715,0.008,96837.0,96835.0,0.2075052]
[1739071185517,0.008,96837.0,96835.0,0.2065052]
[1739071185723,0.003,96837.0,96835.0,0.2075052]
[1739071186012,0.2095014,96837.0,96835.0,0.2075052]
[1739071186208,0.2145014,96837.0,96835.0,0.2075052]
[1739071188008,0.2145014,96837.0,96835.0,0.001]
[1739071188216,0.0326,96836.0,96835.0,0.001]
[1739071189414,0.2065083,96834.0,96832.0,0.3608]
[1739071192008,0.2105083,96834.0,96832.0,0.3608]
[1739071192209,0.2125083,96834.0,96832.0,0.3608]
[1739071194509,0.22318396,96834.0,96832.0,0.3608]
[1739071199617,0.2125083,96834.0,96832.0,0.3608]
[1739071201617,0.006,96834.0,96832.0,0.5673112]
[1739071202821,0.006,96834.0,96833.0,0.0641]
[1739071206513,0.004,96834.0,96833.0,0.0641]
[1739071206713,0.001,96834.0,96833.0,0.0681]
[1739071207115,0.001,96834.0,96833.0,0.4289]
[1739071207309,0.20804487,96840.0,96833.0,0.4249]
[1739071207619,0.001,96834.0,96833.0,0.6324096]
[1739071209019,0.2064973,96839.0,96834.0,0.2065069]
[1739071209419,0.2064973,96839.0,96835.0,0.2065051]
[1739071210323,0.2064973,96839.0,96836.0,0.2065023]
[1739071210722,0.2074973,96839.0,96836.0,0.2065023]
[1739071211315,0.2074973,96839.0,96838.0,0.3608]
[1739071212118,0.2064973,96839.0,96838.0,0.3608]
[1739071212421,0.00154957,96840.0,96839.0,0.2064968]
[1739071213812,0.00654957,96840.0,96839.0,0.2064968]
[1739071215819,0.00554957,96840.0,96839.0,0.2064968]
[1739071216026,0.00654957,96840.0,96839.0,0.2064968]
[1739071217828,0.2202,96875.0,96838.0,0.55854275]
[1739071218019,0.2064572,96858.0,96856.0,0.12874238]
[1739071218328,0.2064616,96856.0,96851.0,0.3608]
[1739071219328,0.03175488,96863.0,96851.0,0.3608]
[1739071219524,0.206463,96855.0,96853.0,0.06437119]
[1739071219717,0.206463,96855.0,96851.0,0.3618]
[1739071220522,0.015,96856.0,96853.0,0.2064664]
[1739071220733,0.015,96856.0,96854.0,0.206464]
[1739071221641,0.006,96855.0,96854.0,0.206464]
[1739071222125,0.015,96855.0,96854.0,0.206464]
[1739071222429,0.015,96855.0,96854.0,0.207464]
[1739071222430,0.009,96855.0,96854.0,0.207464]
[1739071222821,0.007,96855.0,96854.0,0.207464]
[1739071223017,0.016,96855.0,96854.0,0.207464]
[1739071230137,0.016,96855.0,96854.0,0.568264]
[1739071233533,0.00015488,96863.0,96854.0,0.568264]
[1739071233534,0.00015488,96863.0,96854.0,0.3618]
[1739071233737,0.00015488,96863.0,96862.0,0.5672478]
[1739071234724,0.00915488,96863.0,96862.0,0.5672478]
[1739071235235,0.01815488,96863.0,96862.0,0.5682478]
[1739071236037,0.00915488,96863.0,96862.0,0.5682478]
[1739071236235,0.01815488,96863.0,96862.0,0.5682478]
[1739071243040,0.01815488,96863.0,96862.0,0.57874033]
[1739071248945,0.00915488,96863.0,96862.0,0.57874033]
[1739071249244,0.00015488,96863.0,96862.0,0.57974033]
[1739071249449,0.00015488,96863.0,96862.0,0.58274033]
[1739071249853,0.00015488,96863.0,96862.0,0.57974033]
[1739071250149,0.00015488,96863.0,96862.0,0.58274033]
[1739071251555,0.00015488,96863.0,96862.0,0.58074033]
[1739071253266,0.00015488,96863.0,96862.0,0.5702478]
[1739071254348,0.00015488,96863.0,96862.0,0.5692478]
[1739071255762,0.00015488,96863.0,96862.0,0.5702478]
[1739071257256,0.00015488,96863.0,96862.0,0.5712478]
[1739071257556,0.00015488,96863.0,96862.0,0.5702478]
[1739071260546,0.00015488,96863.0,96862.0,0.5692478]
[1739071261258,0.00015488,96863.0,96862.0,0.5672478]
[1739071261458,0.00015488,96863.0,96862.0,0.5702478]
[1739071261848,0.00015488,96863.0,96862.0,0.2094478]
[1739071262159,0.00015488,96863.0,96862.0,0.5702478]
[1739071263050,0.00015488,96863.0,96862.0,0.5722478]
[1739071263859,0.00015488,96863.0,96862.0,0.5702478]
[1739071266462,0.00015488,96863.0,96862.0,1.1778164]
[1739071267161,0.00015488,96863.0,96862.0,1.1758164]
[1739071267462,0.00015488,96863.0,96862.0,1.1818164]
[1739071267762,0.00015488,96863.0,96862.0,1.1788164]
[1739071268561,0.00015488,96863.0,96862.0,1.1778164]
[1739071269664,0.2064081,96881.0,96862.0,0.9713686]
[1739071269860,0.2064081,96881.0,96875.0,0.3608]
[1739071271355,0.00254908,96876.0,96875.0,0.5672201]
[1739071271763,0.00654908,96876.0,96875.0,0.5672201]
[1739071274062,0.00254908,96876.0,96875.0,0.5672201]
[1739071274361,0.00154908,96876.0,96875.0,0.5722201]
[1739071275968,0.00154908,96876.0,96875.0,0.58291002]
[1739071276369,0.00154908,96876.0,96875.0,0.57791002]
[1739071276562,0.00354908,96876.0,96875.0,0.57791002]
[1739071296986,0.00354908,96876.0,96875.0,0.3608]
[1739071297179,0.03424908,96876.0,96875.0,0.3608]
[1739071297991,0.24066708,96876.0,96875.0,0.3608]
[1739071299687,0.03424908,96876.0,96875.0,0.3608]
[1739071300294,0.00354908,96876.0,96875.0,0.3608]
[1739071310200,0.00354908,96876.0,96875.0,0.5672201]
[1739071311095,0.00354908,96876.0,96875.0,0.75273122]
[1739071312200,0.00354908,96876.0,96875.0,0.39193122]
[1739071312403,0.00354908,96876.0,96875.0,0.75273122]
[1739071313200,0.00354908,96876.0,96875.0,0.5672201]
[1739071326510,0.00354908,96876.0,96875.0,0.9280201]
[1739071326914,0.00354908,96876.0,96875.0,0.7216]
[1739071334312,0.00354908,96876.0,96875.0,0.3608]
[1739071336812,0.00354908,96876.0,96872.0,0.18554826]
[1739071337017,0.00354908,96876.0,96875.0,0.3608]
[1739071337510,0.002,96876.0,96875.0,0.3608]
[1739071349527,0.208418,96876.0,96875.0,0.3608]
[1739071355427,0.208418,96876.0,96875.0,0.60806097]
[1739071358130,0.208418,96876.0,96875.0,0.24726097]
[1739071358338,0.208418,96876.0,96875.0,0.60806097]
[1739071359729,0.208418,96876.0,96875.0,0.3608]
[1739071360027,0.208418,96876.0,96871.0,0.2064285]
[1739071360222,0.208418,96876.0,96875.0,0.3608]
[1739071360932,0.208418,96876.0,96871.0,0.2064285]
[1739071361131,0.208418,96876.0,96875.0,0.3608]
[1739071365636,0.208418,96876.0,96875.0,0.3628]
[1739071368536,0.002,96876.0,96875.0,0.3608]
[1739071368734,0.002,96876.0,96875.0,0.3618]
[1739071369541,0.2064087,96881.0,96875.0,0.3618]
[1739071369741,0.2064087,96881.0,96875.0,0.5702195]
[1739071369930,0.2064087,96881.0,96876.0,0.2064179]
[1739071370135,0.2064087,96881.0,96875.0,0.3638]
[1739071370335,0.2064087,96881.0,96877.0,0.2064158]
[1739071371233,0.2064087,96881.0,96875.0,0.3618]
[1739071371434,0.2064087,96881.0,96879.0,0.2064103]
[1739071372237,0.2074087,96881.0,96879.0,0.2064103]
[1739071373036,0.2064087,96881.0,96879.0,0.2064103]
[1739071373241,0.2084087,96881.0,96879.0,0.2064103]
[1739071373944,0.2064087,96881.0,96879.0,0.2064103]
[1739071374129,0.2064087,96881.0,96879.0,0.2074103]
[1739071375043,0.2064087,96881.0,96879.0,0.2094103]
[1739071375644,0.2064087,96881.0,96879.0,0.2084103]
[1739071375944,0.2064087,96881.0,96879.0,0.2094103]
[1739071376245,0.2064087,96881.0,96880.0,0.3608]
[1739071376749,0.01029677,96890.0,96880.0,0.3608]
[1739071376931,0.00154858,96896.0,96883.0,0.2064029]
[1739071377136,0.2063969,96886.0,96884.0,0.0325]
[1739071377630,0.2063969,96886.0,96884.0,0.2389009]
[1739071379343,0.2063969,96886.0,96884.0,0.42444775]
[1739071379938,0.00115488,96885.0,96884.0,0.42444775]
[1739071381750,0.00115488,96885.0,96884.0,0.78524775]
[1739071382954,0.00115488,96885.0,96884.0,0.5997009]
[1739071385454,0.20755368,96885.0,96884.0,0.5997009]
[1739071386048,0.20655368,96885.0,96884.0,0.5997009]
[1739071386255,0.20855368,96885.0,96884.0,0.5997009]
[1739071387747,0.00215488,96885.0,96884.0,0.5997009]
[1739071392753,0.00215488,96885.0,96884.0,0.5672009]
[1739071403373,0.00154858,96896.0,96890.0,0.2063865]
[1739071403374,0.20792458,96896.0,96890.0,0.2063865]
[1739071403556,0.20792458,96896.0,96895.0,0.3608]
[1739071403756,0.00154858,96896.0,96895.0,0.3608]
[1739071404157,0.0313,96898.0,96895.0,0.3608]
[1739071405468,0.004,96896.0,96895.0,0.3608]
[1739071405666,0.008,96896.0,96895.0,0.3608]
[1739071405872,0.004,96896.0,96895.0,0.3608]
[1739071406458,0.0353,96898.0,96896.0,0.2063754]
[1739071406459,0.0383,96898.0,96896.0,0.2063754]
[1739071407170,0.0304,96905.0,96896.0,0.2063754]
[1739071407378,0.0304,96905.0,96895.0,0.3618]
[1739071407379,0.0304,96905.0,96899.0,0.206369]
[1739071407569,0.00015488,96906.0,96899.0,0.206369]
[1739071407766,0.00015488,96906.0,96905.0,0.2063562]
[1739071408070,0.00015488,96906.0,96905.0,0.5671562]
[1739071409173,0.00715488,96906.0,96905.0,0.5681562]
[1739071409967,0.01615488,96906.0,96905.0,0.5691562]
[1739071411263,0.01615488,96906.0,96905.0,0.57960586]
[1739071413067,0.01615488,96906.0,96905.0,0.76488628]
[1739071415471,0.01615488,96906.0,96905.0,0.57960586]
[1739071419577,0.01615488,96906.0,96905.0,0.21880586]
[1739071419778,0.01615488,96906.0,96905.0,0.57960586]
[1739071438890,0.2063374,96914.0,96909.0,0.2063465]
[1739071439081,0.2063374,96914.0,96913.0,0.3608]
[1739071440490,0.21684552,96917.0,96913.0,0.5671386]
[1739071440795,0.007,96914.0,96913.0,0.5671386]
[1739071441405,0.007,96914.0,96913.0,0.5691386]
[1739071445004,0.001,96914.0,96913.0,0.5681386]
[1739071445204,0.001,96914.0,96913.0,0.5741386]
[1739071445602,0.2063332,96916.0,96913.0,0.5761386]
[1739071446702,0.2063332,96916.0,96913.0,0.5701386]
[1739071447018,0.2063332,96916.0,96913.0,0.5721386]
[1739071448210,0.2063332,96916.0,96913.0,0.5701386]
[1739071448412,0.2063332,96916.0,96913.0,0.5721386]
[1739071448922,0.2063357,96915.0,96913.0,0.3658]
[1739071450512,0.2063357,96915.0,96913.0,0.3638]
[1739071450816,0.2063357,96915.0,96913.0,0.3658]
[1739071451212,0.2063357,96915.0,96913.0,0.3628]
[1739071451418,0.2063357,96915.0,96913.0,0.3648]
[1739071451614,0.2063357,96915.0,96914.0,0.3608]
[1739071453418,0.2063357,96915.0,96914.0,0.3618]
[1739071453910,0.2063357,96915.0,96914.0,0.3638]
[1739071454119,0.2063357,96915.0,96914.0,0.3628]
[1739071454317,0.2093357,96915.0,96914.0,0.3628]
[1739071454513,0.2103357,96915.0,96914.0,0.3608]
[1739071455905,0.2073357,96915.0,96914.0,0.3608]
[1739071456219,0.2103357,96915.0,96914.0,0.3608]
[1739071458109,0.2093357,96915.0,96914.0,0.3608]
[1739071458317,0.2103357,96915.0,96914.0,0.3608]
[1739071459517,0.2073357,96915.0,96914.0,0.3608]
[1739071459718,0.2103357,96915.0,96914.0,0.3608]
[1739071460419,0.2093357,96915.0,96914.0,0.3608]
[1739071461629,0.2063519,96907.0,96906.0,0.206354]
[1739071461827,0.2063519,96907.0,96906.0,0.567154]
[1739071462927,0.2063519,96907.0,96906.0,0.3608]
[1739071463223,0.2063519,96907.0,96906.0,0.3618]
[1739071463418,0.2063519,96907.0,96906.0,0.003]
[1739071463621,0.2063519,96907.0,96906.0,0.3638]
[1739071466427,0.2063519,96907.0,96906.0,0.3608]
[1739071466623,0.2063519,96907.0,96906.0,0.3628]
[1739071467022,0.2063519,96907.0,96906.0,0.3618]
[1739071467221,0.2063519,96907.0,96906.0,0.3638]
[1739071467728,0.2063519,96907.0,96906.0,0.3628]
[1739071468422,0.2063519,96907.0,96906.0,0.3618]
[1739071469024,0.21700374,96907.0,96906.0,0.3618]
[1739071469433,0.21700374,96907.0,96906.0,0.3628]
[1739071469821,0.21700374,96907.0,96906.0,0.3608]
[1739071470023,0.21800374,96907.0,96906.0,0.3618]
[1739071470429,0.2063541,96906.0,96905.0,0.18538946]
[1739071470731,0.2063541,96906.0,96905.0,0.54618946]
[1739071471832,0.3608,96943.0,96907.0,0.3675]
[1739071472134,0.3608,96981.0,96944.0,0.1713]